bitfinex-derivatives/quotes_ETHF0:USTF0_20241013
["timestamp","ask_amount","ask_price","bid_price","bid_amount"]
[1728832630250,4.38202515,2447.5,2447.1,0.40873]
[1728832630543,2.87,2447.3,2446.8,3.2078]
[1728832630737,0.4705,2447.2,2446.6,2.87]
[1728832630942,0.4456,2447.1,2446.6,2.87]
[1728832631136,0.4456,2447.1,2446.8,0.40878]
[1728832631333,0.4088,2446.8,2446.6,0.40882]
[1728832631545,0.88037,2447.0,2446.5,4.1472]
[1728832631751,0.88037,2447.0,2446.7,0.40879]
[1728832631752,0.4716,2447.0,2446.7,0.40879]
[1728832632045,0.88037,2447.0,2446.8,0.40879]
[1728832632248,0.4716,2447.0,2446.5,4.1472]
[1728832632449,0.40879,2446.9,2446.7,0.4088]
[1728832632847,0.88037,2447.0,2446.8,0.40879]
[1728832633148,4.32457,2447.4,2446.8,11.18697]
[1728832633149,3.3028,2447.4,2446.8,11.18697]
[1728832633442,3.2078,2447.4,2447.3,0.40871]
[1728832634148,3.2078,2447.4,2447.0,0.9315]
[1728832634352,3.2078,2447.4,2447.2,0.40872]
[1728832634550,3.6165,2447.4,2447.1,0.40874]
[1728832634848,3.6165,2447.4,2447.0,0.4737]
[1728832634849,0.40875,2447.1,2446.9,0.40877]
[1728832635147,0.40878,2446.9,2446.7,0.4088]
[1728832635340,1.84397,2447.0,2446.7,0.4088]
[1728832635746,1.84397,2447.0,2446.7,0.40881]
[1728832636139,1.4352,2447.0,2446.6,0.4737]
[1728832636345,1.4352,2447.0,2446.9,0.40878]
[1728832636537,0.095,2447.3,2447.1,0.40873]
[1728832636744,0.095,2447.3,2447.2,0.40873]
[1728832636745,0.9468,2447.3,2447.2,0.40873]
[1728832637742,3.6802,2447.4,2446.9,1.48093]
[1728832637944,3.6802,2447.4,2447.3,0.40871]
[1728832638447,3.6802,2447.4,2446.9,1.48093]
[1728832638448,7.7666,2447.4,2447.2,0.40872]
[1728832638651,3.6802,2447.4,2446.9,1.48093]
[1728832638853,4.08889,2447.4,2447.2,0.40872]
[1728832639349,7.7666,2447.4,2447.3,0.40871]
[1728832639551,3.6802,2447.4,2447.3,0.40871]
[1728832639753,7.7666,2447.4,2447.3,0.40871]
[1728832640356,7.7666,2447.4,2446.9,0.459]
[1728832640655,0.40871,2447.3,2447.2,0.40873]
[1728832641047,4.0864,2447.3,2447.2,0.40873]
[1728832642551,4.49511,2447.3,2447.2,0.40873]
[1728832642748,4.0864,2447.3,2447.2,0.40873]
[1728832644154,4.49511,2447.3,2447.2,0.40873]
[1728832644449,4.0864,2447.3,2446.9,1.48094]
[1728832644662,3.6802,2447.4,2446.9,0.459]
[1728832644965,3.6802,2447.4,2447.3,0.40871]
[1728832645256,3.2078,2447.4,2447.3,0.40871]
[1728832647056,3.61649,2447.4,2447.3,0.40871]
[1728832647253,7.09956,2447.4,2446.7,3.2078]
[1728832647858,1.02178,2447.3,2447.0,0.40876]
[1728832648055,0.9447,2447.2,2447.0,0.40876]
[1728832648250,0.40874,2447.1,2447.0,0.40876]
[1728832649053,0.40874,2447.1,2446.7,3.2078]
[1728832649255,0.40876,2447.0,2446.7,3.2078]
[1728832649456,3.61656,2447.1,2446.9,0.40877]
[1728832649759,0.40876,2447.0,2446.9,0.40877]
[1728832649957,3.61655,2447.1,2447.0,0.40876]
[1728832650358,0.40877,2447.0,2446.9,0.40877]
[1728832650754,3.2078,2447.1,2446.7,3.2078]
[1728832650953,3.61655,2447.1,2447.0,0.40876]
[1728832651155,3.2078,2447.1,2446.6,0.482]
[1728832651355,3.61655,2447.1,2447.0,0.40876]
[1728832651860,0.40881,2446.8,2446.7,0.40881]
[1728832652155,1.02191,2447.0,2446.3,3.2078]
[1728832652156,0.40881,2446.7,2446.3,3.2078]
[1728832652357,1.31961,2446.7,2446.6,0.40883]
[1728832652563,5.40681,2446.7,2446.6,0.40883]
[1728832653157,5.40681,2446.7,2446.3,3.2078]
[1728832653460,0.9108,2446.7,2446.6,0.40883]
[1728832654060,3.3028,2447.1,2446.9,0.40877]
[1728832654262,0.4934,2447.0,2446.9,0.40877]
[1728832654560,0.90216,2447.0,2446.9,0.40877]
[1728832654956,1.39506,2447.0,2446.6,0.4991]
[1728832655153,0.40878,2446.9,2446.8,0.40879]
[1728832655562,0.9863,2447.0,2446.8,0.40879]
[1728832655865,1.39507,2447.0,2446.8,0.40879]
[1728832656056,0.40878,2446.9,2446.8,0.40879]
[1728832656465,0.40878,2446.9,2446.6,0.4991]
[1728832656662,0.40878,2446.9,2446.8,0.40879]
[1728832657064,0.40878,2446.9,2446.6,0.4991]
[1728832657065,0.4088,2446.8,2446.7,0.4088]
[1728832657358,0.9863,2447.0,2446.6,0.4991]
[1728832657359,0.40879,2446.9,2446.8,0.40879]
[1728832657968,0.9863,2447.0,2446.6,0.4991]
[1728832658264,0.4088,2446.8,2446.7,0.4088]
[1728832658463,0.40888,2446.3,2446.1,0.4089]
[1728832658764,0.40889,2446.3,2446.1,0.40891]
[1728832659060,0.9374,2446.2,2446.1,0.40891]
[1728832659261,1.34629,2446.2,2446.0,0.40892]
[1728832659467,1.34629,2446.2,2446.1,0.40891]
[1728832659468,0.9374,2446.2,2446.1,0.40891]
[1728832659769,3.2078,2446.5,2445.9,0.4949]
[1728832659964,0.89337,2446.4,2446.2,0.40888]
[1728832660263,3.3545,2446.4,2445.9,0.4949]
[1728832660962,0.4845,2446.4,2446.3,0.40888]
[1728832662060,0.4965,2446.6,2446.0,3.8923]
[1728832662362,0.4965,2446.6,2446.5,0.40884]
[1728832663163,0.4965,2446.6,2445.7,4.23023]
[1728832663164,13.7915,2446.6,2445.7,4.23023]
[1728832663379,13.7915,2446.6,2446.2,0.40888]
[1728832663380,2.87,2446.4,2446.2,0.40888]
[1728832663666,2.87,2446.4,2445.8,0.4998]
[1728832663868,0.40888,2446.3,2446.1,0.4089]
[1728832664059,0.4724,2446.2,2446.1,0.4089]
[1728832664255,1.4112,2446.2,2446.1,0.4089]
[1728832664454,0.9508,2446.2,2446.1,0.4089]
[1728832664664,3.3304,2446.5,2445.8,0.4998]
[1728832664964,0.40887,2446.4,2446.2,0.40888]
[1728832665155,1.4112,2446.5,2445.8,3.3698]
[1728832665358,1.05692515,2446.7,2446.5,0.40883]
[1728832665359,0.50382,2446.7,2446.5,0.40883]
[1728832665560,0.4724,2446.7,2446.6,0.40883]
[1728832665868,0.88121,2446.7,2446.5,0.40883]
[1728832666172,0.4724,2446.7,2446.2,0.9401]
[1728832666364,0.88122,2446.7,2446.5,0.40883]
[1728832666966,0.40883,2446.6,2446.4,0.40886]
[1728832667362,0.40883,2446.6,2446.4,0.40885]
[1728832667559,0.4724,2446.7,2446.4,0.40885]
[1728832667759,0.40883,2446.6,2446.4,0.40885]
[1728832668169,0.40883,2446.6,2446.5,0.40884]
[1728832668359,0.40884,2446.5,2446.2,0.9401]
[1728832668564,0.40884,2446.5,2446.4,0.40886]
[1728832668868,0.40889,2446.3,2446.2,0.40889]
[1728832669262,0.40891,2446.2,2446.0,0.40892]
[1728832669661,0.86732,2446.1,2445.9,0.89213]
[1728832670166,0.4578,2446.0,2445.7,3.2078]
[1728832670362,0.4578,2446.0,2445.9,0.40894]
[1728832670363,0.86674,2446.0,2445.9,0.40894]
[1728832670564,0.40895,2445.9,2445.8,0.40895]
[1728832670765,0.86674,2446.0,2445.8,0.40895]
[1728832670966,0.4578,2446.0,2445.9,0.40894]
[1728832671168,0.86674,2446.0,2445.9,0.40894]
[1728832671577,0.40895,2445.9,2445.8,0.40896]
[1728832671776,0.40895,2445.9,2445.7,3.2078]
[1728832671967,0.40895,2445.9,2445.8,0.40896]
[1728832672168,0.86673,2446.0,2445.9,0.40894]
[1728832672471,0.86673,2446.0,2445.8,0.40895]
[1728832672670,0.86674,2446.0,2445.8,0.40895]
[1728832673073,0.40894,2445.9,2445.7,3.2078]
[1728832673369,3.73674,2446.0,2445.4,2.09084985]
[1728832673573,3.73674,2446.0,2445.9,0.40894]
[1728832673781,3.73674,2446.0,2445.5,1.50404]
[1728832673782,0.40895,2445.9,2445.8,0.40895]
[1728832674775,3.73674,2446.0,2445.8,0.40895]
[1728832674976,0.40894,2445.9,2445.8,0.40895]
[1728832675282,3.73674,2446.0,2445.9,0.40894]
[1728832676376,0.40895,2445.9,2445.8,0.40895]
[1728832676575,3.73674,2446.0,2445.9,0.40894]
[1728832677178,0.4578,2446.0,2445.9,0.40894]
[1728832677379,0.4584,2446.1,2446.0,0.40893]
[1728832678271,0.4584,2446.1,2445.7,1.02241]
[1728832678272,3.2078,2446.2,2446.1,0.40891]
[1728832678476,0.4759,2446.3,2446.2,0.40889]
[1728832678681,0.4759,2446.3,2446.0,3.2078]
[1728832678682,0.9732,2446.4,2446.3,0.40888]
[1728832679671,1.05692515,2446.6,2446.5,0.40884]
[1728832679876,2.05782515,2446.7,2446.6,0.40883]
[1728832680081,1.0009,2446.7,2446.6,0.40883]
[1728832681179,0.4986,2446.7,2446.6,0.40883]
[1728832682777,0.4986,2446.7,2446.5,0.40883]
[1728832682973,0.90742,2446.7,2446.5,0.40883]
[1728832683175,0.4986,2446.7,2446.4,0.4837]
[1728832683374,0.40883,2446.6,2446.5,0.40884]
[1728832683571,0.40884,2446.6,2446.3,3.2078]
[1728832683775,2.87,2446.4,2446.1,0.47]
[1728832683977,6.0778,2446.4,2446.0,3.2078]
[1728832684177,0.40891,2446.2,2446.1,0.40891]
[1728832684782,0.40889,2446.3,2446.1,0.4089]
[1728832684984,0.4698,2446.2,2446.1,0.4089]
[1728832685385,0.4698,2446.2,2446.0,3.2078]
[1728832685683,0.4698,2446.2,2444.3,0.4096]
[1728832685684,0.40894,2446.0,2445.4,8.16863985]
[1728832685892,0.40895,2445.9,2445.8,0.40896]
[1728832686096,0.40896,2445.9,2445.7,0.40897]
[1728832686492,7.60132515,2446.1,2445.7,0.40897]
[1728832686493,0.40896,2445.8,2445.7,0.40897]
[1728832686999,2.87,2445.8,2445.4,3.6846]
[1728832687291,2.87,2445.8,2445.6,0.40899]
[1728832687292,0.88858,2445.7,2445.6,0.40899]
[1728832687883,0.4796,2445.7,2445.4,0.4768]
[1728832688094,0.4796,2445.7,2445.6,0.40899]
[1728832688598,4.33586515,2446.0,2445.8,0.40896]
[1728832688898,5.94459948,2445.9,2444.9,0.39357985]
[1728832689194,5.94459948,2445.9,2444.5,2.13655971]
[1728832689195,2.87,2445.2,2444.5,3.3028]
[1728832689393,3.92571584,2445.2,2444.6,0.40915]
[1728832689597,3.2078,2445.0,2444.8,0.40913]
[1728832689801,4.42401584,2445.2,2444.5,3.2078]
[1728832690000,0.40912,2444.9,2444.6,0.40916]
[1728832690192,2.87,2444.8,2444.2,4.81021978]
[1728832690388,3.2078,2445.0,2444.2,4.81021978]
[1728832690389,1.05571584,2445.0,2444.3,2.87]
[1728832690696,3.2078,2445.1,2444.7,0.40913]
[1728832690697,4.67260584,2445.1,2444.7,0.40913]
[1728832690898,4.67260584,2445.1,2444.8,0.40912]
[1728832691193,4.67260584,2445.1,2444.5,0.506]
[1728832691194,3.2078,2445.1,2444.5,0.506]
[1728832691590,3.2078,2445.1,2444.5,3.7138]
[1728832691788,3.2078,2445.1,2444.9,0.40911]
[1728832692396,3.2078,2445.1,2445.0,0.4091]
[1728832692706,0.095,2445.4,2444.8,2.87]
[1728832693000,4.40281584,2445.7,2444.9,0.4714]
[1728832693001,3.2078,2445.5,2444.9,0.4714]
[1728832693310,6.0778,2445.5,2445.0,0.40909]
[1728832693500,0.40904,2445.4,2445.0,0.40909]
[1728832693693,2.87,2445.3,2445.0,0.40909]
[1728832693993,2.87,2445.3,2444.9,0.4714]
[1728832693994,3.76955,2445.3,2444.9,0.8805]
[1728832694199,7.2974,2445.2,2444.4,6.0778]
[1728832694403,3.3561,2445.1,2444.8,0.40912]
[1728832694700,3.3561,2445.1,2444.4,3.2078]
[1728832694701,0.4861,2445.1,2444.9,0.4091]
[1728832694904,0.4861,2445.1,2444.5,1.02295]
[1728832695112,0.4861,2445.1,2444.9,0.40911]
[1728832695404,3.6976,2445.2,2445.1,0.40908]
[1728832695405,3.2078,2445.2,2445.1,0.40908]
[1728832697294,0.4905,2445.3,2444.8,4.1905]
[1728832697501,0.4905,2445.3,2445.2,0.40906]
[1728832698207,7.4501,2445.3,2444.8,0.9827]
[1728832698400,3.76955,2445.3,2445.1,0.40907]
[1728832698706,3.76955,2445.3,2445.0,0.40908]
[1728832698915,3.3605,2445.3,2445.1,0.40907]
[1728832699407,7.4501,2445.3,2445.0,0.40909]
[1728832699704,3.76955,2445.3,2445.1,0.40908]
[1728832700200,4.0896,2445.2,2444.4,3.2078]
[1728832700410,9.3605,2445.3,2444.8,0.40912]
[1728832700411,2.87,2445.0,2444.8,0.40912]
[1728832700900,3.2791,2445.0,2444.7,0.40914]
[1728832701108,3.2791,2445.0,2444.8,0.40913]
[1728832701300,2.87,2445.0,2444.8,0.40913]
[1728832702109,3.2078,2445.1,2445.0,0.4091]
[1728832702611,0.4091,2445.0,2444.8,0.40912]
[1728832702793,6.0778,2445.1,2444.4,3.2078]
[1728832702999,6.48688,2445.1,2444.9,0.40911]
[1728832703413,4.0896,2445.0,2444.9,0.40911]
[1728832703604,6.48688,2445.1,2444.4,3.2078]
[1728832703605,3.2078,2445.1,2444.4,3.2078]
[1728832703909,3.71184,2445.4,2444.8,3.2078]
[1728832704110,2.87,2445.3,2444.9,0.9325]
[1728832704406,6.48684,2445.4,2444.9,0.9325]
[1728832704606,3.2078,2445.4,2444.9,0.9325]
[1728832704798,3.2078,2445.4,2445.3,0.40905]
[1728832706312,0.40899,2445.7,2445.5,0.409]
[1728832706506,0.40899,2445.7,2444.9,0.9325]
[1728832706507,2.87,2445.7,2444.9,3.8025]
[1728832706709,3.2078,2445.7,2445.2,3.2078]
[1728832706903,3.2078,2445.7,2445.6,0.40899]
[1728832707301,3.2078,2445.7,2445.6,4.49779]
[1728832707511,1.05571584,2446.2,2445.6,10.0888]
[1728832707809,1.05571584,2446.2,2445.5,7.10033]
[1728832707810,0.40893,2446.0,2445.8,0.40895]
[1728832707999,0.40893,2446.0,2445.9,0.40894]
[1728832708307,0.9691,2446.2,2446.0,0.40892]
[1728832708308,1.378,2446.2,2446.0,0.40892]
[1728832708812,1.378,2446.2,2446.1,0.40891]
[1728832709004,1.378,2446.2,2446.0,0.40892]
[1728832709206,0.40891,2446.1,2445.9,0.40894]
[1728832710004,0.40893,2446.0,2445.9,0.40894]
[1728832710206,0.40893,2446.0,2445.2,1.02263]
[1728832710207,0.40896,2445.9,2445.4,0.4987]
[1728832710416,0.40898,2445.8,2445.6,0.40899]
[1728832710709,0.40899,2445.7,2445.5,0.8741]
[1728832711009,1.02237,2445.9,2445.5,0.87411]
[1728832711210,0.40899,2445.7,2445.5,0.87411]
[1728832711398,0.40899,2445.7,2445.5,0.40901]
[1728832711604,0.40899,2445.6,2445.5,0.40901]
[1728832712709,0.40903,2445.4,2445.3,0.91904]
[1728832713011,0.5081,2445.5,2445.2,0.40906]
[1728832713210,0.5081,2445.5,2445.0,3.38]
[1728832713513,0.40905,2445.3,2445.1,0.40907]
[1728832713710,0.5081,2445.5,2445.0,3.38]
[1728832713711,0.40908,2445.1,2445.0,0.91909]
[1728832714015,0.40908,2445.1,2445.0,0.40909]
[1728832714016,0.40909,2445.1,2445.0,0.40909]
[1728832714408,3.2078,2445.4,2445.0,0.40909]
[1728832714709,0.40907,2445.2,2445.0,0.40909]
[1728832714901,3.2078,2445.4,2444.8,3.2078]
[1728832715109,3.2078,2445.4,2445.0,2.87]
[1728832715414,3.61684,2445.4,2445.2,0.40905]
[1728832715608,0.40905,2445.3,2445.1,0.40906]
[1728832715809,3.2078,2445.4,2445.0,0.40909]
[1728832715810,0.40908,2445.2,2445.0,0.40909]
[1728832716218,0.40908,2445.1,2445.0,0.40909]
[1728832716516,0.40908,2445.1,2444.8,6.0778]
[1728832717009,0.40908,2445.1,2444.9,0.40911]
[1728832717514,0.4091,2445.0,2444.9,0.40911]
[1728832717909,0.40908,2445.1,2445.0,0.40909]
[1728832718509,0.40908,2445.1,2444.8,6.0778]
[1728832718714,0.40908,2445.1,2444.9,0.40911]
[1728832719313,0.4091,2445.0,2444.9,0.40911]
[1728832719516,0.40908,2445.1,2444.9,0.40911]
[1728832720115,1.50358,2445.2,2444.8,0.40912]
[1728832720311,0.40913,2444.8,2444.7,1.41744]
[1728832720506,4.2305,2445.1,2444.5,0.40917]
[1728832720507,0.40916,2444.6,2444.5,0.40917]
[1728832720825,0.40918,2444.5,2444.4,4.81021978]
[1728832722312,4.50038,2444.5,2444.4,1.60241978]
[1728832722518,7.70818,2444.5,2444.4,1.60241978]
[1728832723110,3.61698,2444.5,2444.4,1.60241978]
[1728832723920,7.70818,2444.5,2444.4,1.60241978]
[1728832725118,7.70818,2444.5,2444.2,0.40922]
[1728832725119,7.299,2444.5,2444.2,0.40922]
[1728832725423,7.299,2444.5,2443.9,0.8857]
[1728832725424,0.40922,2444.3,2444.1,0.40924]
[1728832725819,3.2078,2444.5,2443.9,0.8857]
[1728832726020,3.2078,2444.5,2444.0,0.40925]
[1728832726021,0.40924,2444.2,2444.0,0.40925]
[1728832726518,0.40923,2444.2,2443.9,0.8857]
[1728832726719,0.40923,2444.2,2444.1,0.40925]
[1728832726913,0.40923,2444.2,2444.0,0.40925]
[1728832727119,0.40923,2444.2,2443.6,3.2078]
[1728832727120,7.6312,2444.1,2443.6,3.2078]
[1728832727317,0.4538,2444.0,2443.9,0.40928]
[1728832727623,0.4538,2444.0,2443.6,3.2078]
[1728832727825,0.86307,2444.0,2443.8,0.40929]
[1728832728021,0.86307,2444.0,2443.6,3.2078]
[1728832728221,0.4505,2444.1,2443.6,3.2078]
[1728832728222,3.2078,2444.2,2443.6,3.2078]
[1728832728420,0.40921,2444.4,2444.2,0.40922]
[1728832728617,4.07079,2444.5,2443.9,1.02321]
[1728832728823,4.07079,2444.5,2444.4,0.4092]
[1728832728824,4.07078,2444.5,2444.4,0.4092]
[1728832729125,3.2078,2444.5,2444.4,0.4092]
[1728832730122,3.2078,2444.5,2444.2,0.8683]
[1728832730320,0.4092,2444.4,2444.2,0.40922]
[1728832730625,3.2078,2444.5,2444.0,0.9359]
[1728832730626,3.61698,2444.5,2444.0,0.9359]
[1728832730814,0.4092,2444.4,2444.2,0.40921]
[1728832731016,3.2078,2444.5,2444.0,0.9359]
[1728832731519,0.4092,2444.4,2444.0,0.9359]
[1728832731723,3.2078,2444.5,2444.1,0.40924]
[1728832731724,0.40923,2444.3,2444.1,0.40924]
[1728832731924,0.40923,2444.3,2444.2,0.40923]
[1728832731925,0.4508,2444.3,2444.2,0.40923]
[1728832732426,0.40923,2444.2,2444.1,0.40924]
[1728832732726,0.86002,2444.3,2444.1,0.40924]
[1728832733121,0.40924,2444.2,2444.0,0.40925]
[1728832733322,0.86002,2444.3,2444.1,0.40923]
[1728832733519,0.40924,2444.2,2444.1,0.40924]
[1728832733724,0.40923,2444.2,2444.0,0.40925]
[1728832733928,0.40923,2444.2,2443.7,3.6324]
[1728832733929,0.40926,2444.0,2443.9,0.40927]
[1728832734223,0.4658,2444.2,2443.9,0.40927]
[1728832734524,0.87503,2444.2,2444.1,0.40925]
[1728832735124,0.4658,2444.2,2443.7,3.2078]
[1728832735323,0.40925,2444.1,2444.0,0.40926]
[1728832736024,0.40925,2444.1,2443.9,0.40927]
[1728832736325,3.54,2444.1,2443.7,3.2078]
[1728832736528,0.4093,2443.8,2443.7,3.2078]
[1728832736921,4.5013,2443.8,2443.7,3.2078]
[1728832737123,4.9455,2443.8,2443.7,3.2078]
[1728832737628,4.5362,2443.8,2443.4,3.2078]
[1728832737829,4.5362,2443.8,2443.1,3.2078]
[1728832737830,6.7478,2443.6,2443.1,3.2078]
[1728832738029,3.2078,2443.6,2443.1,3.2078]
[1728832738333,0.40935,2443.5,2442.9,0.8939]
[1728832738529,7.77115,2443.6,2442.9,0.8939]
[1728832738830,0.40937,2443.4,2442.9,0.8939]
[1728832739030,0.40939,2443.3,2442.9,0.8939]
[1728832739226,0.40937,2443.4,2442.9,0.8939]
[1728832739431,0.4094,2443.2,2442.5,3.61731]
[1728832739730,7.15719,2443.3,2442.6,1.32339]
[1728832739928,7.15719,2443.3,2442.6,0.9139]
[1728832739929,6.7478,2443.3,2442.6,0.9139]
[1728832740130,3.2078,2443.3,2442.8,0.40946]
[1728832740430,3.2078,2443.3,2442.8,6.7478]
[1728832740621,3.2078,2443.3,2443.1,0.40941]
[1728832740821,3.2078,2443.3,2443.2,0.9139]
[1728832741023,3.2078,2443.3,2443.2,5.0067]
[1728832741230,0.4551,2443.7,2443.2,0.9139]
[1728832741431,3.54,2443.6,2443.2,0.9139]
[1728832741631,0.40938,2443.3,2443.2,0.9139]
[1728832741935,4.0928,2443.5,2442.8,3.2078]
[1728832742236,1.02342,2443.4,2442.8,3.2078]
[1728832742428,0.40943,2443.1,2442.8,3.2078]
[1728832742625,0.4365,2443.3,2442.8,3.2078]
[1728832742626,0.40945,2442.9,2442.8,3.2078]
[1728832743228,0.4094,2443.2,2442.8,3.61726]
[1728832743433,0.4365,2443.3,2442.8,3.2078]
[1728832744138,0.40943,2443.1,2442.8,3.2078]
[1728832744329,0.40942,2443.1,2442.8,3.2078]
[1728832744527,3.9765,2443.3,2442.8,3.2078]
[1728832744730,0.4365,2443.3,2442.8,3.2078]
[1728832744930,6.7478,2443.5,2442.8,3.2078]
[1728832745135,0.5326,2443.6,2442.8,3.2078]
[1728832745136,0.4376,2443.6,2442.8,3.2078]
[1728832745329,0.40932,2443.7,2443.3,0.40936]
[1728832745532,3.2078,2443.8,2443.4,0.9141]
[1728832745842,0.40935,2443.5,2443.4,0.9141]
[1728832746029,6.0878,2443.5,2442.9,1.353]
[1728832746231,2.88,2443.3,2443.0,0.9141]
[1728832746534,0.40941,2443.1,2443.0,0.9141]
[1728832747123,1.3556,2443.4,2443.0,0.9141]
[1728832747329,3.2078,2443.4,2443.0,0.9141]
[1728832747726,3.4391,2443.7,2443.0,0.9141]
[1728832747926,6.0878,2443.5,2443.0,0.9141]
[1728832748122,0.40939,2443.3,2443.0,0.9141]
[1728832748538,0.4094,2443.2,2443.0,0.9141]
[1728832748736,0.40941,2443.1,2443.0,0.9141]
[1728832749237,0.40941,2443.2,2443.0,0.9141]
[1728832749446,2.88,2443.3,2443.0,0.9141]
[1728832749447,0.40941,2443.1,2443.0,0.4523]
[1728832750132,0.87641,2443.2,2443.0,0.4523]
[1728832750332,0.40941,2443.1,2443.0,0.4523]
[1728832750532,0.467,2443.2,2443.0,0.4523]
[1728832751639,0.467,2443.2,2443.0,0.86173]
[1728832751835,0.467,2443.2,2443.0,0.4523]
[1728832752042,0.095,2443.7,2443.0,0.4523]
[1728832752333,10.2668,2443.8,2443.0,1.47586]
[1728832752531,0.40932,2443.7,2443.4,0.40936]
[1728832752732,10.2668,2443.8,2443.3,0.40937]
[1728832752733,0.40933,2443.6,2443.3,0.40937]
[1728832752937,0.40933,2443.6,2443.0,1.47586]
[1728832752938,6.0878,2443.8,2443.4,1.22996]
[1728832753132,0.82032,2443.7,2443.4,1.22996]
[1728832753345,3.28935,2443.5,2443.2,0.40939]
[1728832753537,2.88,2443.5,2442.8,1.84425]
[1728832753733,2.88,2443.5,2443.2,0.40939]
[1728832753734,3.28935,2443.5,2443.2,0.40939]
[1728832754130,3.2753,2443.5,2442.8,1.84425]
[1728832754332,3.2753,2443.5,2443.0,3.2078]
[1728832754538,0.411,2443.7,2443.1,0.40941]
[1728832754539,3.291,2443.7,2443.1,0.40941]
[1728832754746,0.3956,2443.6,2443.1,0.40941]
[1728832754941,0.40936,2443.5,2443.1,0.40941]
[1728832755443,0.40935,2443.5,2443.2,0.40939]
[1728832755741,7.11117,2443.5,2443.0,3.2078]
[1728832756136,7.11117,2443.5,2443.0,3.61721]
[1728832756137,0.40938,2443.3,2443.0,3.61721]
[1728832756538,7.11117,2443.5,2443.0,3.61722]
[1728832756838,0.4094,2443.2,2443.0,3.61722]
[1728832757254,7.11117,2443.5,2443.0,3.61722]
[1728832757450,0.40941,2443.2,2443.0,3.2078]
[1728832757655,0.3917,2443.1,2443.0,3.2078]
[1728832757844,0.80111,2443.1,2443.0,3.2078]
[1728832758050,0.40944,2443.0,2442.7,3.2078]
[1728832758249,0.81144,2443.0,2442.8,0.40946]
[1728832758458,0.402,2443.0,2442.7,3.2078]
[1728832758748,0.402,2443.0,2442.9,0.40945]
[1728832758957,0.3917,2443.1,2443.0,0.40943]
[1728832759151,3.2078,2443.5,2442.8,0.4081]
[1728832759355,0.095,2443.7,2443.6,0.40933]
[1728832759548,0.40932,2443.7,2443.4,0.3907]
[1728832759748,0.40931,2443.8,2443.5,0.40934]
[1728832760052,2.88,2443.9,2443.5,0.40934]
[1728832760053,0.40931,2443.7,2443.5,0.40934]
[1728832760252,3.2078,2443.7,2443.5,0.40934]
[1728832760447,3.61712,2443.7,2443.4,0.80005]
[1728832760655,3.61712,2443.7,2443.4,0.40935]
[1728832760851,0.4008,2443.6,2443.4,0.40935]
[1728832761243,0.4008,2443.6,2443.1,0.3891]
[1728832761442,0.4008,2443.6,2443.5,0.40935]
[1728832762452,0.40935,2443.5,2443.3,0.40937]
[1728832762655,0.79445,2443.5,2443.3,0.40937]
[1728832762845,0.3851,2443.5,2443.3,0.40938]
[1728832763051,0.40936,2443.4,2443.2,0.40939]
[1728832763259,3.61717,2443.4,2443.3,0.40938]
[1728832763558,0.3851,2443.5,2443.4,0.40936]
[1728832763752,0.79445,2443.5,2443.4,0.40936]
[1728832764358,0.3851,2443.5,2443.4,0.40936]
[1728832764655,0.3851,2443.5,2443.3,0.40937]
[1728832764656,0.79445,2443.5,2443.3,0.40937]
[1728832764855,0.3851,2443.5,2443.3,0.40937]
[1728832765159,0.40938,2443.3,2443.2,0.40939]
[1728832765347,0.4094,2443.2,2443.1,0.40941]
[1728832765548,0.40939,2443.3,2443.0,0.4218]
[1728832765752,0.40939,2443.3,2443.2,0.4094]
[1728832765953,0.3851,2443.5,2443.0,0.4218]
[1728832766160,0.40939,2443.3,2443.0,0.4218]
[1728832766362,0.40939,2443.3,2443.2,0.4094]
[1728832766562,0.3851,2443.5,2443.0,0.4218]
[1728832766764,0.40941,2443.2,2443.0,0.83122]
[1728832766971,0.3851,2443.5,2442.9,3.2078]
[1728832767161,0.40943,2443.0,2442.9,3.2078]
[1728832767662,1.22843,2443.0,2442.9,3.2078]
[1728832767852,5.32203,2443.0,2442.9,3.2078]
[1728832768159,5.32203,2443.0,2442.4,3.2078]
[1728832768160,8.1204,2443.0,2442.4,3.2078]
[1728832768358,8.1204,2443.0,2442.5,0.40951]
[1728832768359,0.40949,2442.7,2442.5,0.40951]
[1728832769161,0.4095,2442.6,2442.4,3.2078]
[1728832769372,0.40948,2442.8,2442.4,3.2078]
[1728832769559,4.0268,2443.0,2442.4,6.7478]
[1728832769759,0.40949,2442.7,2442.4,6.7478]
[1728832769959,4.0268,2443.0,2442.4,3.2078]
[1728832770263,0.4095,2442.6,2442.5,0.40951]
[1728832770462,4.0268,2443.0,2442.4,3.2078]
[1728832770959,0.40947,2442.8,2442.6,0.40949]
[1728832771470,4.0268,2443.0,2442.4,3.2078]
[1728832772063,0.40946,2442.8,2442.6,0.40949]
[1728832772470,5.0504,2443.0,2442.4,3.2078]
[1728832772670,0.40951,2442.6,2442.4,3.61732]
[1728832773171,0.82481,2442.5,2442.4,3.2078]
[1728832774175,0.40956,2442.2,2442.1,3.2078]
[1728832774473,0.40956,2442.2,2442.1,3.61738]
[1728832774765,0.4153,2442.5,2442.1,3.61738]
[1728832775162,0.40954,2442.4,2442.2,0.40955]
[1728832775563,0.40954,2442.4,2442.3,0.40955]
[1728832775765,0.82482,2442.5,2442.4,0.40953]